bitfinex/quotes_SOLUSD_20250705
["timestamp","ask_amount","ask_price","bid_price","bid_amount"]
[1751707833225,6.98,147.18,147.1,55.88179679]
[1751707833529,5.05466741,147.17,147.1,55.88179679]
[1751707833729,5.05466741,147.16,147.1,55.88179679]
[1751707833927,6.98,147.18,147.1,55.88179679]
[1751707834132,5.05466548,147.17,147.1,55.88179679]
[1751707834316,5.05466548,147.16,147.1,55.88179679]
[1751707834616,6.98,147.18,147.1,55.88179679]
[1751707834808,5.05527744,147.17,147.1,55.88179679]
[1751707835002,6.98,147.18,147.1,55.88179679]
[1751707835003,5.05527744,147.16,147.1,55.88179679]
[1751707835208,5.05527744,147.15,147.1,55.88179679]
[1751707835440,13.29330663,147.18,147.1,55.88179679]
[1751707835629,5.05552003,147.17,147.1,55.88179679]
[1751707835805,5.05552003,147.16,147.1,55.88179679]
[1751707836128,5.05552003,147.15,147.1,55.88179679]
[1751707836322,13.29330663,147.18,147.1,55.88179679]
[1751707836528,5.056512,147.17,147.1,55.88179679]
[1751707836725,5.056512,147.16,147.1,55.88179679]
[1751707836924,5.056512,147.15,147.1,55.88179679]
[1751707837131,13.29330663,147.18,147.1,55.88179679]
[1751707837329,5.05721373,147.17,147.1,55.88179679]
[1751707837629,5.05721373,147.16,147.1,55.88179679]
[1751707837822,5.05721373,147.15,147.1,55.88179679]
[1751707838018,5.05721373,147.14,147.1,55.88179679]
[1751707838225,13.29330663,147.18,147.1,55.88179679]
[1751707838431,5.06172973,147.17,147.1,55.88179679]
[1751707838606,5.06172973,147.16,147.1,55.88179679]
[1751707838805,5.06172973,147.15,147.1,55.88179679]
[1751707839023,6.98,147.18,147.1,55.88179679]
[1751707839215,5.06253802,147.17,147.1,55.88179679]
[1751707839416,5.06253802,147.16,147.1,55.88179679]
[1751707839630,5.06253802,147.15,147.1,55.88179679]
[1751707839816,13.29330663,147.18,147.1,55.88179679]
[1751707840027,5.0630225,147.17,147.1,55.88179679]
[1751707840221,5.0630225,147.16,147.1,55.88179679]
[1751707840518,5.0630225,147.15,147.1,55.88179679]
[1751707840834,13.29330663,147.18,147.1,55.88179679]
[1751707841010,5.06387653,147.17,147.1,55.88179679]
[1751707841212,5.06387653,147.16,147.1,55.88179679]
[1751707841429,5.06387653,147.15,147.1,55.88179679]
[1751707841636,5.06399117,147.14,147.1,55.88179679]
[1751707841821,5.06399117,147.13,147.1,55.88179679]
[1751707842026,6.31330663,147.17,147.1,55.88179679]
[1751707842218,5.06551755,147.16,147.1,55.88179679]
[1751707842416,5.06551755,147.15,147.1,55.88179679]
[1751707842719,5.06551755,147.14,147.1,55.88179679]
[1751707843039,5.06551755,147.13,147.1,55.88179679]
[1751707843231,13.10833638,147.17,147.1,55.88179679]
[1751707843432,5.06697736,147.16,147.1,55.88179679]
[1751707843623,5.06697736,147.15,147.1,55.88179679]
[1751707843815,5.06697736,147.14,147.1,55.88179679]
[1751707844016,5.06697736,147.13,147.1,55.88179679]
[1751707844242,6.31330663,147.16,147.1,55.88179679]
[1751707844412,5.06867201,147.15,147.1,55.88179679]
[1751707844618,5.06867201,147.14,147.1,55.88179679]
[1751707844830,5.06867201,147.13,147.1,55.88179679]
[1751707845120,6.31330663,147.16,147.1,55.88179679]
[1751707845335,5.06883638,147.15,147.1,55.88179679]
[1751707845527,5.06883638,147.14,147.1,55.88179679]
[1751707845727,5.06883638,147.13,147.1,55.88179679]
[1751707845926,6.31330663,147.16,147.1,55.88179679]
[1751707846128,5.06882685,147.15,147.1,55.88179679]
[1751707846322,5.06882685,147.14,147.1,55.88179679]
[1751707846648,6.31330663,147.17,147.1,55.88179679]
[1751707846833,5.06926494,147.16,147.1,55.88179679]
[1751707847038,5.06926494,147.15,147.1,55.88179679]
[1751707847346,5.06926494,147.14,147.1,55.88179679]
[1751707847642,5.06926494,147.13,147.1,55.88179679]
[1751707847816,6.31330663,147.17,147.1,55.88179679]
[1751707848012,5.07063565,147.16,147.1,55.88179679]
[1751707848243,5.07063565,147.15,147.1,55.88179679]
[1751707848436,5.07063565,147.14,147.1,55.88179679]
[1751707848643,6.31330663,147.17,147.1,55.88179679]
[1751707848941,5.07256247,147.16,147.1,55.88179679]
[1751707849128,5.07256247,147.15,147.1,55.88179679]
[1751707849321,5.07256247,147.14,147.1,55.88179679]
[1751707849522,6.31330663,147.17,147.1,55.88179679]
[1751707849722,5.07337246,147.16,147.1,55.88179679]
[1751707850030,5.07337246,147.15,147.1,55.88179679]
[1751707850228,5.07337246,147.14,147.1,55.88179679]
[1751707850430,6.31330663,147.17,147.1,55.88179679]
[1751707850631,5.07314205,147.16,147.1,55.88179679]
[1751707850937,5.07314205,147.15,147.1,55.88179679]
[1751707851245,5.07314205,147.14,147.1,55.88179679]
[1751707851437,6.31330663,147.17,147.1,55.88179679]
[1751707851637,5.07402635,147.16,147.1,55.88179679]
[1751707851838,5.07402635,147.15,147.1,55.88179679]
[1751707852146,5.07402635,147.14,147.1,55.88179679]
[1751707852444,6.31330663,147.18,147.1,55.88179679]
[1751707852644,5.07546325,147.17,147.1,55.88179679]
[1751707852840,5.07546325,147.16,147.1,55.88179679]
[1751707853145,5.07546325,147.15,147.14,26.0]
[1751707855228,5.07546325,147.15,147.14,32.79624847]
[1751707857530,6.31330663,147.2,147.14,49.78686964]
[1751707857851,5.07677841,147.19,147.14,49.78686964]
[1751707858034,5.07677841,147.18,147.14,49.78686964]
[1751707858235,5.07677841,147.17,147.14,49.78686964]
[1751707858421,6.31330663,147.2,147.14,49.78686964]
[1751707858422,5.07677841,147.16,147.14,49.78686964]
[1751707858622,6.31330663,147.2,147.14,49.78686964]
[1751707858850,5.07675934,147.19,147.14,49.78686964]
[1751707859143,5.076756,147.18,147.14,49.78686964]
[1751707859349,5.076756,147.17,147.14,49.78686964]
[1751707859553,5.076756,147.16,147.14,49.78686964]
[1751707859848,6.345945,147.19,147.14,49.78686964]
[1751707860053,5.07575918,147.18,147.14,49.78686964]
[1751707860239,5.07575918,147.17,147.14,49.78686964]
[1751707860549,5.07575918,147.16,147.14,49.78686964]
[1751707860719,6.345945,147.19,147.14,49.78686964]
[1751707860924,5.07566648,147.18,147.14,49.78686964]
[1751707861138,5.07566648,147.17,147.14,49.78686964]
[1751707861351,5.07566648,147.16,147.14,49.78686964]
[1751707861543,6.345945,147.19,147.14,49.78686964]
[1751707861847,5.07507803,147.18,147.14,49.78686964]
[1751707862074,5.07507803,147.17,147.14,49.78686964]
[1751707862239,5.07507803,147.16,147.14,49.78686964]
[1751707862423,6.345945,147.19,147.14,49.78686964]
[1751707862623,5.0745599,147.18,147.14,49.78686964]
[1751707862844,5.0745599,147.17,147.14,49.78686964]
[1751707863056,5.0745599,147.16,147.14,49.78686964]
[1751707863261,6.345945,147.2,147.14,49.78686964]
[1751707863424,5.07410641,147.19,147.14,49.78686964]
[1751707863624,5.07410641,147.18,147.14,49.78686964]
[1751707863851,5.07410641,147.17,147.15,6.6402]
[1751707864058,5.07410641,147.16,147.15,6.6402]
[1751707864229,6.345945,147.2,147.15,6.6402]
[1751707864442,5.0735771,147.19,147.15,6.6402]
[1751707864628,5.0735771,147.18,147.15,6.6402]
[1751707864841,5.0735771,147.17,147.15,6.6402]
[1751707865042,6.345945,147.2,147.15,6.6402]
[1751707865258,5.07408936,147.19,147.15,6.6402]
[1751707865442,5.07408936,147.18,147.15,6.6402]
[1751707865643,5.07408936,147.17,147.16,6.79532481]
[1751707867177,6.98,147.21,147.16,25.43853685]
[1751707867382,5.07184083,147.2,147.16,25.43853685]
[1751707867540,5.07184083,147.19,147.18,32.79440141]
[1751707868554,6.98,147.21,147.18,49.78040494]
[1751707868753,5.07068792,147.2,147.18,49.78040494]
[1751707868966,6.345945,147.24,147.18,49.78040494]
[1751707869150,5.06998337,147.23,147.18,49.78040494]
[1751707869353,5.06998337,147.22,147.18,49.78040494]
[1751707869670,5.06998337,147.21,147.18,49.78040494]
[1751707869847,5.06998337,147.2,147.18,49.78040494]
[1751707870049,6.345945,147.24,147.18,49.78040494]
[1751707870260,5.06815236,147.23,147.18,49.78040494]
[1751707870455,5.06815236,147.22,147.18,49.78040494]
[1751707870656,5.06815236,147.21,147.18,49.78040494]
[1751707870858,5.06645698,147.2,147.18,49.78040494]
[1751707871059,6.33307123,147.24,147.18,49.78040494]
[1751707871365,5.06636236,147.23,147.18,49.78040494]
[1751707871557,5.06636236,147.22,147.18,49.78040494]
[1751707871758,5.06636236,147.21,147.18,49.78040494]
[1751707871966,5.06636236,147.2,147.18,49.78040494]
[1751707872150,6.33307123,147.24,147.18,49.78040494]
[1751707872345,5.06405122,147.23,147.18,49.78040494]
[1751707872549,5.06405122,147.22,147.18,49.78040494]
[1751707872853,5.06405122,147.21,147.18,49.78040494]
[1751707873153,6.33307123,147.24,147.18,49.78040494]
[1751707873462,5.06308872,147.23,147.18,49.78040494]
[1751707873666,5.06308872,147.22,147.18,49.78040494]
[1751707873867,5.06308872,147.21,147.18,49.78040494]
[1751707874063,6.33307123,147.24,147.18,49.78040494]
[1751707874249,5.06293935,147.23,147.18,49.78040494]
[1751707874445,5.06293935,147.22,147.18,49.78040494]
[1751707874662,5.06293935,147.21,147.18,49.78040494]
[1751707874867,6.33307123,147.24,147.18,49.78040494]
[1751707875065,5.06096263,147.23,147.18,49.78040494]
[1751707875256,5.06096263,147.22,147.18,49.78040494]
[1751707875460,6.33307123,147.25,147.18,49.78040494]
[1751707875674,5.06038928,147.24,147.18,49.78040494]
[1751707875854,5.06038928,147.23,147.18,49.78040494]
[1751707876054,5.06038928,147.22,147.18,49.78040494]
[1751707876259,6.33307123,147.26,147.18,49.78040494]
[1751707876457,5.05925146,147.25,147.18,49.78040494]
[1751707876757,5.05925146,147.24,147.18,49.78040494]
[1751707876959,5.05925146,147.23,147.18,49.78040494]
[1751707877159,5.05925146,147.22,147.18,49.78040494]
[1751707877474,6.33307123,147.26,147.18,49.78040494]
[1751707877678,5.05922161,147.25,147.18,49.78040494]
[1751707877978,5.05922161,147.24,147.18,49.78040494]
[1751707878180,5.05922161,147.23,147.18,49.78040494]
[1751707878379,13.35307123,147.27,147.18,49.78040494]
[1751707878678,5.05876954,147.26,147.18,49.78040494]
[1751707878870,5.05876954,147.25,147.18,49.78040494]
[1751707879178,5.05876954,147.24,147.18,49.78040494]
[1751707879485,5.05876954,147.23,147.18,49.78040494]
[1751707879660,13.35307123,147.27,147.18,49.78040494]
[1751707879981,5.05810881,147.26,147.18,49.78040494]
[1751707880200,5.05810881,147.25,147.18,49.78040494]
[1751707880366,5.05810881,147.24,147.19,6.5906]
[1751707880559,5.05810881,147.23,147.19,6.5906]
[1751707880872,13.35307123,147.27,147.2,1.6562]
[1751707880873,5.05810881,147.26,147.2,1.6562]
[1751707881062,5.05810881,147.25,147.2,1.6562]
[1751707881259,5.05810881,147.24,147.2,1.6562]
[1751707881470,5.05810881,147.23,147.22,26.0]
[1751707881654,5.05810881,147.26,147.22,26.0]
[1751707881978,5.05810881,147.25,147.22,26.0]
[1751707882157,5.05810881,147.24,147.22,26.0]
[1751707882359,7.02,147.27,147.22,26.0]
[1751707882572,5.05581043,147.26,147.23,6.792094]
[1751707882877,5.05581043,147.25,147.23,6.792094]
[1751707883071,5.05581043,147.24,147.23,6.792094]
[1751707883252,5.05581043,147.26,147.23,6.792094]
[1751707883452,5.05581043,147.25,147.23,6.792094]
[1751707883654,5.05581043,147.24,147.23,6.792094]
[1751707883854,5.05581043,147.26,147.23,6.792094]
[1751707884170,5.05581043,147.25,147.23,6.792094]
[1751707884366,7.02,147.27,147.23,6.792094]
[1751707884664,5.05458242,147.26,147.23,6.792094]
[1751707884868,5.05458242,147.25,147.23,6.792094]
[1751707885064,5.05458242,147.26,147.23,6.792094]
[1751707885286,5.05458242,147.25,147.23,6.792094]
[1751707885462,5.05458242,147.26,147.23,6.792094]
[1751707885778,5.05458242,147.25,147.23,6.792094]
[1751707885978,5.05458242,147.26,147.23,6.792094]
[1751707886181,5.05458242,147.25,147.23,6.792094]
[1751707886476,5.05458242,147.26,147.23,6.792094]
[1751707886684,5.05458242,147.25,147.23,6.792094]
[1751707886983,5.05458242,147.26,147.23,6.792094]
[1751707887154,5.05458242,147.25,147.23,6.792094]
[1751707887354,5.05458242,147.26,147.23,6.792094]
[1751707887569,5.05458242,147.25,147.23,6.792094]
[1751707887769,5.05458242,147.26,147.23,6.792094]
[1751707888076,5.05458242,147.25,147.23,6.792094]
[1751707888285,5.05458242,147.26,147.23,6.792094]
[1751707888585,5.05458242,147.25,147.23,6.792094]
[1751707888779,5.05458242,147.26,147.23,6.792094]
[1751707888987,5.05458242,147.25,147.23,6.792094]
[1751707889160,5.05458242,147.26,147.23,6.792094]
[1751707889463,5.05458242,147.25,147.23,6.792094]
[1751707889660,5.05458242,147.26,147.23,6.792094]
[1751707889881,5.05458242,147.25,147.23,6.792094]
[1751707890067,5.05458242,147.28,147.23,6.792094]
[1751707890269,5.05458242,147.27,147.23,6.792094]
[1751707890472,5.05458242,147.26,147.23,6.792094]
[1751707890784,5.05458242,147.25,147.23,6.792094]
[1751707890969,5.05458242,147.27,147.23,6.792094]
[1751707891281,5.05458242,147.26,147.23,6.792094]
[1751707891481,5.05458242,147.25,147.23,6.792094]
[1751707891702,5.05458242,147.24,147.23,6.792094]
[1751707891861,5.05458242,147.27,147.23,6.792094]
[1751707892065,5.05458242,147.26,147.23,6.792094]
[1751707892271,5.05458242,147.25,147.23,6.792094]
[1751707892477,5.05458242,147.24,147.23,6.792094]
[1751707892762,5.05458242,147.27,147.23,6.792094]
[1751707892965,5.05458242,147.26,147.23,6.792094]
[1751707893169,5.05458242,147.25,147.23,6.792094]
[1751707893460,5.05458242,147.24,147.23,6.792094]
[1751707893658,5.05458242,147.27,147.23,6.792094]
[1751707893886,5.05458242,147.26,147.23,6.792094]
[1751707894179,5.05458242,147.25,147.23,6.792094]
[1751707894480,5.05458242,147.24,147.23,6.792094]
[1751707894784,5.05458242,147.27,147.23,6.792094]
[1751707894989,5.05458242,147.26,147.23,6.792094]
[1751707895178,5.05458242,147.25,147.23,6.792094]
[1751707895490,5.05458242,147.24,147.23,6.792094]
[1751707897366,5.05458242,147.24,147.22,32.79238697]
[1751707897679,5.06071658,147.23,147.22,32.79238697]
[1751707899489,5.06259704,147.23,147.22,32.79238697]
[1751707903193,6.32824631,147.27,147.22,32.79238697]
[1751707903373,5.06731166,147.26,147.22,32.79238697]
[1751707903574,5.06731166,147.25,147.22,32.79238697]
[1751707903894,5.06731166,147.24,147.22,32.79238697]
[1751707904200,6.32824631,147.27,147.22,32.79238697]
[1751707904373,5.06805267,147.26,147.22,32.79238697]
[1751707904574,5.06805267,147.25,147.22,32.79238697]
[1751707904797,5.06805267,147.24,147.22,32.79238697]
[1751707904988,6.32824631,147.28,147.22,32.79238697]
[1751707905192,5.0681472,147.27,147.22,32.79238697]
[1751707905381,5.0681472,147.26,147.22,32.79238697]
[1751707905584,5.0681472,147.25,147.22,32.79238697]
[1751707905781,5.0681472,147.24,147.22,32.79238697]
[1751707905977,6.32824631,147.28,147.22,32.79238697]
[1751707906176,5.06778811,147.27,147.22,32.79238697]
[1751707906396,5.06778811,147.26,147.22,32.79238697]
[1751707906702,5.06778811,147.25,147.22,32.79238697]
[1751707906877,5.06778811,147.24,147.22,32.79238697]
[1751707907071,6.32824631,147.28,147.22,32.79238697]
[1751707907281,5.06880987,147.27,147.22,49.77377536]
[1751707907468,5.06880987,147.26,147.22,49.77377536]
[1751707907674,5.06880987,147.25,147.22,49.77377536]
[1751707907874,6.32824631,147.28,147.22,49.77377536]
[1751707908099,5.07007377,147.27,147.23,6.2539]
[1751707908300,5.07007377,147.26,147.25,26.0]
[1751707909305,5.07007377,147.26,147.25,32.79117147]
[1751707912885,6.32824631,147.3,147.25,49.76910016]
[1751707913210,5.07501967,147.29,147.25,49.76910016]
[1751707913403,6.32824631,147.31,147.25,32.79117147]
[1751707913642,6.32824631,147.3,147.25,32.79117147]
[1751707917888,6.32824631,147.31,147.25,49.76910016]
[1751707918093,6.32824631,147.32,147.25,49.76910016]
[1751707921128,6.32824631,147.31,147.25,49.76910016]
[1751707922731,13.11671543,147.31,147.25,32.79117147]
[1751707923027,6.32824631,147.29,147.25,6.79117147]
[1751707924895,5.0704682,147.28,147.25,6.79117147]
[1751707925201,5.0704682,147.27,147.25,6.79117147]
[1751707925401,5.0704682,147.26,147.25,6.79117147]
[1751707938328,5.07289265,147.26,147.25,23.76910016]
[1751707939725,6.32824631,147.3,147.25,23.76910016]
[1751707939902,5.0732282,147.29,147.25,23.76910016]
[1751707940102,6.32824631,147.3,147.25,23.76910016]
[1751707940103,5.0732282,147.28,147.25,23.76910016]
[1751707940299,5.0732282,147.27,147.25,23.76910016]
[1751707940524,6.32824631,147.3,147.25,23.76910016]
[1751707940727,5.07329987,147.29,147.25,23.76910016]
[1751707940930,5.07329987,147.28,147.25,23.76910016]
[1751707941229,5.07329987,147.27,147.25,23.76910016]
[1751707941430,6.32824631,147.3,147.25,23.76910016]
[1751707941730,5.07343188,147.29,147.25,23.76910016]
[1751707941926,5.07343188,147.28,147.25,23.76910016]
[1751707942126,5.07343188,147.27,147.25,23.76910016]
[1751707942433,6.32824631,147.3,147.25,23.76910016]
[1751707942634,5.07362124,147.29,147.25,23.76910016]
[1751707942928,5.07362124,147.28,147.25,23.76910016]
[1751707943327,5.07362124,147.27,147.25,23.76910016]
[1751707943520,5.07362124,147.26,147.25,23.76910016]
[1751707946417,6.32824631,147.31,147.28,26.0]
[1751707946624,6.32824631,147.32,147.28,26.0]
[1751707948033,6.32824631,147.32,147.29,6.78932717]
[1751707956434,6.32824631,147.31,147.29,6.78932717]
[1751707958528,5.08014264,147.3,147.29,6.78932717]
[1751707971466,8.9469677,147.3,147.29,6.78932717]
[1751707981356,15.27521401,147.3,147.29,6.78932717]
[1751707981670,8.9469677,147.3,147.29,6.78932717]
[1751707982439,15.27521401,147.3,147.24,1.5761]
[1751707982643,3.86682506,147.25,147.24,8.3677327]
[1751707982861,8.9469677,147.25,147.24,34.3677327]
[1751707983071,8.9469677,147.25,147.24,8.3677327]
[1751707983647,5.08014264,147.25,147.24,8.3677327]
[1751707985068,5.08014264,147.25,147.24,6.7916327]
[1751707985967,8.9469677,147.25,147.24,6.7916327]
[1751707990385,8.9469677,147.25,147.23,6.79196051]
[1751707990557,8.9469677,147.24,147.22,26.0]
[1751707990759,8.9469677,147.23,147.19,32.2732]
[1751707990964,3.86682506,147.21,147.19,32.2732]
[1751707992076,3.86682506,147.21,147.2,6.79347826]
[1751707994771,3.86682506,147.22,147.2,6.79347826]
[1751707999273,5.06497886,147.24,147.2,6.79347826]
[1751707999473,5.06497886,147.26,147.21,3.86682506]
[1751707999773,5.06497886,147.25,147.21,5.39792506]
[1751707999979,3.86682506,147.25,147.21,5.39792506]
[1751708000902,8.93194798,147.25,147.21,5.39792506]
[1751708001213,3.86682506,147.25,147.21,5.39792506]
[1751708001566,3.86682506,147.25,147.22,6.79255535]
[1751708001874,8.93194798,147.25,147.22,6.79255535]
[1751708002077,3.86682506,147.25,147.22,6.79255535]
[1751708002771,8.93157253,147.25,147.22,6.79255535]
[1751708002971,3.86682506,147.25,147.22,6.79255535]
[1751708003577,8.93157253,147.25,147.22,6.79255535]
[1751708003770,3.86682506,147.25,147.22,6.79255535]
[1751708004480,8.93157253,147.25,147.22,6.79255535]
[1751708004674,3.86682506,147.25,147.22,6.79255535]
[1751708005090,3.86682506,147.26,147.22,36.65938041]
[1751708005269,5.06532701,147.25,147.24,26.0]
[1751708006000,3.86682506,147.26,147.23,26.0]
[1751708006875,3.86682506,147.26,147.24,6.7916327]
[1751708009122,6.33093434,147.29,147.24,6.7916327]
[1751708009421,3.86682506,147.27,147.24,6.7916327]
[1751708009628,5.06842506,147.26,147.24,6.7916327]
[1751708009925,6.33553133,147.29,147.24,6.7916327]
[1751708010102,3.86682506,147.27,147.26,26.0]
[1751708010310,8.93455889,147.27,147.26,26.0]
[1751708010820,8.93455889,147.27,147.24,49.77071447]
[1751708011124,5.06773383,147.26,147.24,49.77071447]
[1751708011325,3.86682506,147.27,147.24,49.77071447]
[1751708011625,5.06932605,147.26,147.24,49.77071447]
[1751708011794,3.86682506,147.27,147.24,49.77071447]
[1751708011999,5.07065206,147.26,147.24,49.77071447]
[1751708012206,3.86682506,147.27,147.24,49.77071447]
[1751708012407,5.07088339,147.26,147.24,49.77071447]
[1751708012607,6.33553133,147.29,147.24,49.77071447]
[1751708012810,3.86682506,147.27,147.24,49.77071447]
[1751708012995,5.07121039,147.26,147.24,49.77071447]
[1751708013194,6.33553133,147.29,147.24,49.77071447]
[1751708013520,3.86682506,147.27,147.24,49.77071447]
[1751708013740,5.07142677,147.26,147.24,49.77071447]
[1751708014022,3.86682506,147.27,147.24,49.77071447]
[1751708014330,3.86682506,147.25,147.23,6.79191464]
[1751708014503,3.86682506,147.24,147.23,6.79191464]
[1751708015004,8.93890543,147.24,147.23,6.79191464]
[1751708016033,8.93890543,147.24,147.22,6.79255535]
[1751708016225,3.86682506,147.24,147.22,6.79255535]
[1751708018631,5.07320162,147.23,147.22,6.79255535]
[1751708030655,3.86682506,147.25,147.22,6.79255535]
[1751708030861,5.08745068,147.24,147.22,6.79255535]
[1751708031059,5.08745068,147.23,147.22,6.79255535]
[1751708039653,15.31358909,147.23,147.19,6.7939398]
[1751708039860,3.86682506,147.2,147.19,6.7939398]
[1751708040165,8.95427574,147.2,147.15,10.66261167]
[1751708040357,5.08745068,147.19,147.15,6.79578661]
[1751708040567,5.08745068,147.18,147.16,3.86682506]
[1751708040750,5.08745068,147.17,147.15,27.6520782]
[1751708040936,3.86682506,147.18,147.15,23.78525314]
[1751708041257,5.08423209,147.17,147.16,26.0]
[1751708041436,5.08423209,147.17,147.16,32.79532481]
[1751708041755,3.86682506,147.18,147.16,32.79532481]
[1751708042334,3.86682506,147.19,147.16,32.79532481]
[1751708042557,5.08013511,147.18,147.16,32.79532481]
[1751708042741,3.86682506,147.19,147.16,32.79532481]
[1751708042946,5.08017081,147.18,147.16,32.79532481]
[1751708043249,3.86682506,147.19,147.16,32.79532481]
[1751708043436,5.07824909,147.18,147.16,36.66214987]
[1751708043634,3.86682506,147.2,147.16,36.66214987]
[1751708043837,5.0782376,147.19,147.16,36.66214987]
[1751708044035,5.0782376,147.18,147.16,36.66214987]
[1751708044358,3.86682506,147.2,147.16,36.66214987]
[1751708044552,5.0766015,147.19,147.16,36.66214987]
[1751708044738,5.0766015,147.18,147.16,36.66214987]
[1751708044938,3.86682506,147.21,147.16,53.65046191]
[1751708045156,3.86682506,147.21,147.17,3.86682506]
[1751708045157,5.07723665,147.2,147.17,3.86682506]
[1751708045381,3.86682506,147.21,147.17,3.86682506]
[1751708045684,5.07662888,147.2,147.17,3.86682506]
[1751708045882,3.86682506,147.22,147.17,3.86682506]
[1751708046085,5.07603541,147.21,147.17,3.86682506]
[1751708046257,5.07603541,147.2,147.17,3.86682506]
[1751708046456,3.86682506,147.22,147.17,3.86682506]
[1751708046658,5.07514867,147.21,147.17,3.86682506]
[1751708046962,13.14820773,147.24,147.16,49.78363685]
[1751708046963,5.07514867,147.2,147.18,10.66122647]
[1751708047177,3.86682506,147.23,147.19,3.86682506]
[1751708047483,5.0748448,147.22,147.19,3.86682506]
[1751708047683,5.0748448,147.21,147.19,3.86682506]
[1751708047980,5.0748448,147.2,147.19,3.86682506]
[1751708048164,5.0748448,147.2,147.19,10.66076486]
[1751708054088,5.0748448,147.22,147.19,10.66076486]
[1751708054284,5.0748448,147.21,147.19,10.66076486]
[1751708054488,3.86682506,147.23,147.19,10.66076486]
[1751708054684,5.07246022,147.22,147.19,10.66076486]
[1751708054990,3.86682506,147.25,147.21,3.86682506]
[1751708055197,5.0731572,147.24,147.21,3.86682506]
[1751708055380,5.0731572,147.23,147.21,3.86682506]
[1751708055577,5.0731572,147.22,147.21,3.86682506]
[1751708055778,5.0731572,147.22,147.2,3.86682506]
[1751708056093,3.86682506,147.25,147.2,3.86682506]
[1751708056311,5.07332328,147.24,147.21,6.79301677]
[1751708056592,5.07332328,147.23,147.21,6.79301677]
[1751708056766,5.07332328,147.22,147.21,6.79301677]
[1751708057589,5.07332328,147.22,147.21,3.86682506]
[1751708060304,5.07332328,147.22,147.21,10.65984183]
[1751708060513,6.35655726,147.27,147.21,10.65984183]
[1751708060684,6.35655726,147.27,147.22,3.86682506]
[1751708060685,8.94410788,147.26,147.22,3.86682506]
[1751708060876,5.07728282,147.25,147.22,3.86682506]
[1751708061179,5.07728282,147.24,147.22,3.86682506]
[1751708061379,5.07728282,147.23,147.22,3.86682506]
[1751708062605,5.07728282,147.23,147.22,10.65938041]
[1751708064285,10.21474422,147.28,147.22,27.6407688]
[1751708064482,8.94498956,147.27,147.23,3.86682506]
[1751708064690,5.0781645,147.26,147.23,3.86682506]
[1751708064892,5.0781645,147.25,147.23,3.86682506]
[1751708065090,5.0781645,147.24,147.23,3.86682506]
[1751708065899,5.0781645,147.24,147.22,27.6407688]
[1751708066200,6.34791916,147.27,147.22,23.77394374]
[1751708066201,5.0781645,147.23,147.22,23.77394374]
[1751708069616,5.0781645,147.23,147.22,29.86682506]
[1751708071112,5.0781645,147.23,147.22,36.65938041]
[1751708076411,3.86682506,147.26,147.22,36.65938041]
[1751708076609,5.07364765,147.25,147.22,36.65938041]
[1751708076796,5.07364765,147.24,147.22,36.65938041]
[1751708077003,3.86682506,147.26,147.22,36.65938041]
[1751708077201,5.07364765,147.25,147.22,36.65938041]
[1751708077402,5.07364765,147.24,147.22,36.65938041]
[1751708077595,3.86682506,147.26,147.22,36.65938041]
[1751708077800,5.0735415,147.25,147.22,36.65938041]
[1751708078017,5.0735415,147.24,147.22,36.65938041]
[1751708078198,3.86682506,147.26,147.22,36.65938041]
[1751708078515,5.07363166,147.25,147.22,36.65938041]
[1751708078828,5.07363166,147.24,147.22,36.65938041]
[1751708079010,6.34791916,147.28,147.23,3.86682506]
[1751708079218,5.07288166,147.27,147.23,3.86682506]
[1751708079388,5.07288166,147.26,147.23,3.86682506]
[1751708079590,5.07288166,147.25,147.23,3.86682506]
[1751708079791,5.07288166,147.24,147.23,3.86682506]
[1751708081221,5.07288166,147.24,147.23,10.65891906]
[1751708082223,6.34791916,147.28,147.23,27.63915406]
[1751708082397,5.07179589,147.27,147.25,3.86682506]
[1751708082718,5.07179589,147.26,147.25,29.86682506]
[1751708084217,5.07179589,147.26,147.25,36.65799653]
[1751708084422,5.07179589,147.29,147.25,36.65799653]
[1751708084722,5.07179589,147.28,147.25,36.65799653]
[1751708085019,5.07179589,147.27,147.25,36.65799653]
[1751708085206,12.38582506,147.3,147.25,36.65799653]
[1751708085408,5.06948224,147.29,147.26,3.86682506]
[1751708085610,5.06948224,147.28,147.25,36.65799653]
[1751708085800,5.06948224,147.27,147.25,36.65799653]
[1751708086001,3.86682506,147.29,147.25,36.65799653]
[1751708086338,5.06947671,147.28,147.25,36.65799653]
[1751708086502,5.06947671,147.27,147.25,36.65799653]
[1751708086703,3.86682506,147.29,147.25,36.65799653]
[1751708086915,5.06996472,147.28,147.25,36.65799653]
[1751708087116,5.06996472,147.27,147.25,36.65799653]
[1751708087312,3.86682506,147.29,147.25,36.65799653]
[1751708087517,5.07004488,147.28,147.25,36.65799653]
[1751708087718,5.07004488,147.27,147.25,36.65799653]
[1751708088023,3.86682506,147.29,147.25,36.65799653]
[1751708088211,5.07004158,147.28,147.25,36.65799653]
[1751708088413,5.07004158,147.27,147.25,36.65799653]
[1751708088626,3.86682506,147.29,147.25,36.65799653]